bitfinex-derivatives/quotes_ETHF0:USTF0_20241022
["timestamp","ask_amount","ask_price","bid_price","bid_amount"]
[1729611063597,2.98,2619.8,2619.5,4.9296]
[1729611063905,3.36188,2619.8,2619.6,0.38189]
[1729611064510,3.36188,2619.8,2619.7,0.38189]
[1729611066203,0.3819,2619.7,2619.6,0.3819]
[1729611066404,3.3619,2619.7,2619.6,0.3819]
[1729611066711,2.98,2619.9,2619.3,0.95486]
[1729611066905,2.98,2619.9,2619.7,0.38188]
[1729611066906,0.38189,2619.8,2619.7,0.38188]
[1729611067115,3.36187,2619.9,2619.8,0.38188]
[1729611067602,2.98,2619.9,2619.8,0.38188]
[1729611068015,0.34455323,2620.0,2619.9,0.38186]
[1729611068310,4.1622,2620.7,2619.9,0.38186]
[1729611068311,3.2078,2621.3,2620.1,3.24558]
[1729611068501,0.95402,2621.7,2620.0,0.95462]
[1729611068502,2.3171,2621.5,2620.8,2.98]
[1729611068703,2.3171,2621.5,2621.4,0.38164]
[1729611069001,0.34391795,2621.7,2620.9,41.7543]
[1729611069201,3.36162,2621.6,2621.4,0.38164]
[1729611069710,3.36162,2621.6,2620.9,41.7543]
[1729611069711,2.98,2621.6,2621.5,0.38163]
[1729611071108,2.98,2621.6,2620.9,41.7543]
[1729611071317,0.38164,2621.5,2621.3,0.38165]
[1729611072810,2.98,2621.6,2621.3,0.38165]
[1729611073003,0.38163,2621.5,2621.3,0.38165]
[1729611073513,0.38165,2621.4,2621.2,0.38166]
[1729611073707,0.3429475,2621.7,2620.9,0.9543]
[1729611073912,0.38162,2621.6,2621.4,0.38164]
[1729611074318,0.38162,2621.6,2621.0,3.93426]
[1729611074319,0.3816,2621.7,2621.6,0.38161]
[1729611074609,3.2078,2621.9,2621.2,2.98]
[1729611074610,3.55660482,2621.9,2621.2,2.98]
[1729611074813,3.55660482,2621.9,2621.8,0.38158]
[1729611075001,3.2078,2621.9,2621.7,0.38159]
[1729611075315,3.58938,2621.9,2621.6,0.3816]
[1729611075518,3.58938,2621.9,2621.7,0.38159]
[1729611075817,3.2078,2621.9,2621.7,0.38159]
[1729611076115,3.58938,2621.9,2621.7,0.38159]
[1729611077015,0.38158,2621.8,2621.6,0.3816]
[1729611077817,6.1878,2621.9,2621.2,3.2078]
[1729611078111,6.1878,2621.9,2621.3,0.38165]
[1729611078112,0.38163,2621.5,2621.3,0.38165]
[1729611078305,6.1878,2621.7,2620.9,4.8768]
[1729611078506,0.38165,2621.4,2621.2,0.38167]
[1729611078705,0.38165,2621.4,2621.2,0.38166]
[1729611078906,2.3148,2621.6,2620.9,3.2078]
[1729611079205,2.3148,2621.6,2620.9,6.1878]
[1729611079404,2.69642,2621.6,2621.4,0.38164]
[1729611079605,3.4912,2622.0,2621.3,6.1878]
[1729611079606,0.38159,2621.8,2621.3,6.1878]
[1729611079816,0.38159,2621.8,2621.4,0.38164]
[1729611080006,2.5373,2622.0,2621.5,0.38162]
[1729611080007,0.38161,2621.7,2621.5,0.38162]
[1729611080310,0.38161,2621.7,2621.6,0.38161]
[1729611080515,0.38159,2621.8,2621.6,0.38161]
[1729611080710,0.38159,2621.8,2621.6,0.3816]
[1729611080916,0.38157,2621.9,2621.7,0.38159]
[1729611081108,0.3403706,2621.9,2621.4,0.95411]
[1729611081304,2.91886,2622.0,2621.8,0.38157]
[1729611081704,2.91886,2622.0,2621.6,0.38161]
[1729611081919,2.91886,2622.0,2621.8,0.38157]
[1729611082619,2.91886,2622.0,2621.9,0.38157]
[1729611083112,2.91886,2622.0,2621.8,0.38158]
[1729611083316,0.38157,2621.9,2621.7,0.38159]
[1729611084214,0.35236085,2622.0,2621.9,0.38157]
[1729611084420,8.88415,2622.1,2621.6,0.95404]
[1729611084721,8.88415,2622.1,2622.0,0.38155]
[1729611084922,8.5026,2622.1,2622.0,0.38155]
[1729611085111,3.2078,2622.1,2622.0,0.38155]
[1729611089118,2.72582307,2622.3,2621.8,0.95397]
[1729611089322,3.10733307,2622.3,2622.2,0.38153]
[1729611089719,2.3828,2622.3,2622.2,0.38153]
[1729611090624,2.76431,2622.3,2622.2,0.38153]
[1729611090822,2.3828,2622.3,2622.2,0.38153]
[1729611091229,0.38153,2622.2,2622.1,0.38153]
[1729611091922,2.3828,2622.3,2622.1,0.38153]
[1729611091923,2.76432,2622.3,2622.1,0.38153]
[1729611092119,2.76432,2622.3,2622.2,0.38153]
[1729611093021,2.3828,2622.3,2622.2,0.38153]
[1729611093321,2.76431,2622.3,2622.2,0.38153]
[1729611093926,2.3828,2622.3,2622.2,0.38153]
[1729611095225,2.76431,2622.3,2622.2,0.38153]
[1729611095623,2.3828,2622.3,2621.9,2.3734]
[1729611095826,0.38153,2622.2,2622.1,0.38153]
[1729611097119,2.3828,2622.3,2621.9,2.3734]
[1729611097322,3.2078,2622.6,2622.5,0.38148]
[1729611097522,3.2078,2622.6,2622.1,2.98]
[1729611097723,0.38149,2622.5,2622.4,0.38149]
[1729611097924,3.78013427,2622.6,2622.5,0.38148]
[1729611098229,3.2078,2623.2,2622.5,6.7928]
[1729611098421,0.59467995,2623.1,2622.6,2.308]
[1729611098622,0.38144,2622.8,2622.7,0.38145]
[1729611098936,0.38143,2622.9,2622.8,0.38143]
[1729611099228,9.09916,2623.2,2622.6,3.26167]
[1729611099229,0.38141,2623.1,2622.6,3.26167]
[1729611099421,0.3814,2623.1,2623.0,0.3814]
[1729611099618,0.38142,2623.0,2622.9,0.38142]
[1729611100222,8.49935686,2623.2,2622.6,3.26167]
[1729611100425,0.3814,2623.1,2623.0,0.3814]
[1729611100619,8.49935686,2623.2,2622.6,3.26167]
[1729611100819,0.38141,2623.0,2622.9,0.38142]
[1729611101328,0.38143,2622.9,2622.8,0.38143]
[1729611101627,8.49935686,2623.2,2622.6,3.26167]
[1729611101828,0.38142,2623.0,2622.6,3.26167]
[1729611102025,0.38142,2623.0,2622.9,0.38142]
[1729611102730,8.49935686,2623.2,2622.6,2.308]
[1729611102937,0.38144,2622.9,2622.8,0.38144]
[1729611103227,0.38146,2622.7,2622.6,0.38146]
[1729611103923,3.93353,2623.0,2622.4,3.2078]
[1729611104133,0.38148,2622.5,2622.4,3.58929]
[1729611104425,0.38148,2622.6,2622.5,0.38148]
[1729611105423,2.80426,2622.7,2622.6,0.38147]
[1729611105623,2.4228,2622.7,2622.6,0.38147]
[1729611105826,1.14831421,2623.3,2622.6,7.74647]
[1729611105827,1.14829421,2623.3,2622.6,7.74647]
[1729611106126,0.38141,2623.1,2623.0,0.38141]
[1729611106528,5.31415686,2623.2,2622.7,0.95363]
[1729611106727,5.69554686,2623.2,2623.1,0.38139]
[1729611107032,5.31415686,2623.2,2623.1,0.38139]
[1729611107425,5.31415686,2623.2,2622.9,2.4095]
[1729611107426,0.3814,2623.1,2623.0,0.3814]
[1729611108327,8.29415686,2623.2,2622.8,2.4549]
[1729611108528,0.38139,2623.1,2622.9,0.38141]
[1729611108719,0.38139,2623.1,2623.0,0.38141]
[1729611108920,8.29415686,2623.2,2622.8,2.4549]
[1729611109124,0.38142,2622.9,2622.8,2.4549]
[1729611109329,0.38146,2622.7,2622.6,0.38146]
[1729611109530,0.38144,2622.8,2622.7,0.38145]
[1729611109731,0.9535,2623.1,2622.5,6.22795538]
[1729611109936,0.38142,2623.0,2622.8,0.38143]
[1729611110131,8.52195686,2623.2,2622.5,7.18166538]
[1729611110335,0.38142,2623.0,2622.9,0.38141]
[1729611110635,0.38143,2622.9,2622.8,0.38143]
[1729611110931,0.38143,2622.9,2622.6,2.98]
[1729611110932,0.38142,2623.0,2622.6,2.98]
[1729611111130,0.59600987,2622.9,2622.6,2.98]
[1729611111335,0.38142,2623.0,2622.8,0.38143]
[1729611111636,0.59598533,2622.9,2622.8,0.38143]
[1729611112131,0.97740533,2622.9,2622.8,0.38143]
[1729611112728,0.59598533,2622.9,2622.7,2.4616]
[1729611112928,8.52195686,2623.2,2622.7,0.38145]
[1729611112929,0.59598533,2622.8,2622.7,0.38145]
[1729611113137,0.59598533,2622.8,2622.5,6.22795538]
[1729611113138,0.38143,2622.9,2622.8,0.38144]
[1729611113636,0.38144,2622.8,2622.7,0.38144]
[1729611113837,0.97837243,2622.8,2622.7,0.38144]
[1729611114130,0.38147,2622.6,2622.5,3.81315538]
[1729611114327,0.97840243,2622.6,2622.5,3.81315538]
[1729611114725,3.07023243,2622.6,2622.5,4.19463538]
[1729611114931,3.45170243,2622.6,2622.5,4.19463538]
[1729611115326,3.07023243,2622.6,2622.5,4.19463538]
[1729611116036,3.45170243,2622.6,2622.5,4.19463538]
[1729611117035,3.2078,2622.9,2622.5,3.81315538]
[1729611117234,0.38145,2622.8,2622.7,0.38144]
[1729611117431,0.38143,2622.9,2622.8,0.38143]
[1729611117929,3.93352,2623.1,2622.6,4.8945]
[1729611118136,4.28269649,2623.1,2622.6,4.8945]
[1729611118431,0.38143,2622.9,2622.8,0.38144]
[1729611119336,0.38143,2622.9,2622.7,0.38144]
[1729611119644,3.81197758,2623.1,2622.6,4.8945]
[1729611119834,0.38144,2622.9,2622.8,0.38144]
[1729611120533,2.3908,2623.0,2622.6,4.8945]
[1729611120730,3.81197758,2623.1,2622.8,2.98]
[1729611120936,0.34917649,2623.1,2623.0,0.38141]
[1729611121136,3.2078,2623.2,2623.1,0.38139]
[1729611121137,3.58919,2623.2,2623.1,0.38139]
[1729611121338,0.3814,2623.1,2623.0,0.3814]
[1729611121641,0.38142,2623.0,2622.9,0.38142]
[1729611121842,0.38143,2622.9,2622.8,0.38143]
[1729611122043,0.38141,2623.0,2622.9,0.38141]
[1729611122436,0.35470917,2623.2,2622.6,7.8745]
[1729611122635,0.38142,2623.0,2622.9,0.38142]
[1729611124143,3.46280109,2623.2,2622.9,0.38142]
[1729611124346,3.46280109,2623.2,2622.7,0.95364]
[1729611124538,3.84418109,2623.2,2623.1,0.38139]
[1729611125133,0.38138,2623.2,2623.1,0.38139]
[1729611125334,3.81598657,2623.2,2622.8,0.9536]
[1729611125546,0.3814,2623.1,2623.0,0.3814]
[1729611126046,3.46280109,2623.2,2623.1,0.38139]
[1729611126237,2.4146,2623.3,2623.1,2.3383]
[1729611126238,3.46280109,2623.3,2623.1,2.3383]
[1729611126546,3.65801634,2623.4,2623.3,0.38137]
[1729611126742,3.65801634,2623.4,2623.1,4.8344]
[1729611126939,0.9659169,2623.3,2623.2,0.38137]
[1729611127339,4.42871799,2623.3,2623.2,0.38137]
[1729611127541,0.38138,2623.2,2623.1,5.21579]
[1729611127846,0.9659269,2623.2,2623.1,5.21579]
[1729611129142,0.5845469,2623.2,2623.1,5.21579]
[1729611129445,0.5845469,2623.2,2623.1,9.02779]
[1729611133850,0.9659269,2623.2,2623.1,9.02779]
[1729611134055,0.9659269,2623.2,2623.1,2.71969]
[1729611134341,0.9659269,2623.2,2623.1,2.3383]
[1729611134547,4.42872799,2623.2,2623.1,2.71969]
[1729611134966,0.5845469,2623.2,2623.1,2.71969]
[1729611135148,0.9659269,2623.2,2623.1,2.71969]
[1729611135342,0.5845469,2623.2,2623.1,2.71969]
[1729611135850,0.5845469,2623.2,2623.1,6.53197317]
[1729611136038,0.5845469,2623.2,2623.1,10.34397317]
[1729611140546,6.67060109,2623.6,2623.1,9.96258317]
[1729611140753,6.67060109,2623.9,2623.5,0.95335]
[1729611140945,7.05189109,2623.9,2623.8,0.38129]
[1729611141452,7.05189109,2623.9,2623.8,4.19249]
[1729611141453,3.58909,2623.9,2623.8,4.19249]
[1729611143148,3.2078,2623.9,2623.8,4.19249]
[1729611143951,3.46280109,2624.0,2623.9,0.38128]
[1729611144351,0.38126,2624.0,2623.9,0.38128]
[1729611144650,6.70723204,2624.1,2624.0,0.38126]
[1729611145044,0.38126,2624.0,2623.9,3.36127]
[1729611145452,6.70724204,2624.1,2624.0,0.38126]
[1729611145651,6.70724204,2624.1,2623.9,2.98]
[1729611145652,6.32598204,2624.1,2623.9,2.98]
[1729611145849,0.38126,2624.0,2623.9,3.36127]
[1729611146050,0.38128,2624.0,2623.7,5.4065]
[1729611146245,0.38128,2624.0,2623.9,0.38128]
[1729611146941,6.32598204,2624.1,2623.7,5.4065]
[1729611147143,2.5158,2624.1,2624.0,0.38126]
[1729611149849,2.89705,2624.1,2624.0,0.38126]
[1729611150054,2.5158,2624.1,2624.0,0.38126]
[1729611150254,2.89705,2624.1,2624.0,0.38126]
[1729611150753,3.08706699,2624.1,2624.0,0.38126]
[1729611151061,0.30906977,2624.1,2624.0,4.19246]
[1729611151453,2.5328,2624.3,2624.0,3.8112]
[1729611151754,2.5328,2624.3,2624.2,3.36123]
[1729611152558,2.5328,2624.3,2624.2,0.38123]
[1729611152756,2.91402,2624.3,2624.2,3.36123]
[1729611153355,2.5328,2624.3,2624.2,3.36123]
[1729611154053,2.5328,2624.3,2624.2,7.17163]
[1729611154355,3.589,2624.5,2624.2,6.7904]
[1729611154654,6.12,2624.5,2624.4,0.38121]
[1729611155358,2.531,2624.5,2624.4,3.36121]
[1729611155556,2.531,2624.5,2624.4,7.17161]
[1729611156762,2.3427,2624.7,2624.6,0.38118]
[1729611156959,2.3427,2624.7,2624.6,3.36118]
[1729611157260,2.91215,2624.8,2624.6,2.98]
[1729611157466,2.531,2624.8,2624.7,0.38116]
[1729611157757,3.2078,2625.3,2624.7,6.1707]
[1729611157961,6.11939,2625.3,2625.2,0.38109]
[1729611158160,6.11939,2625.3,2625.1,2.98]
[1729611158161,5.7383,2625.3,2625.1,2.98]
[1729611158363,0.38109,2625.2,2625.1,3.36109]
[1729611158657,5.92655378,2625.3,2625.2,0.38109]
[1729611158658,6.11938,2625.3,2625.2,0.38109]
[1729611158862,5.7383,2625.3,2625.2,0.38109]
[1729611159154,5.7383,2625.3,2625.1,0.38109]
[1729611159155,2.91159,2625.3,2625.1,0.38109]
[1729611159366,2.5305,2625.3,2624.8,40.8]
[1729611159554,0.38113,2624.9,2624.8,2.04414]
[1729611159750,0.38113,2625.0,2624.9,0.38113]
[1729611159953,0.38115,2624.9,2624.8,0.38114]
[1729611160155,2.76485,2624.9,2624.8,0.38114]
[1729611160760,2.3837,2624.9,2624.8,0.38114]
[1729611161063,2.3837,2624.9,2624.8,4.19074]
[1729611161064,2.76483,2624.9,2624.8,4.19074]
[1729611161358,2.76483,2624.9,2624.8,0.38114]
[1729611161756,2.3837,2624.9,2624.8,0.38114]
[1729611161954,2.3837,2624.9,2624.8,4.19074]
[1729611162153,0.3811,2625.2,2625.1,0.38109]
[1729611162964,2.3837,2625.3,2625.0,2.98]
[1729611163162,2.3837,2625.3,2625.0,0.38111]
[1729611163163,0.3811,2625.1,2625.0,0.38111]
[1729611165661,0.3811,2625.2,2625.1,0.38109]
[1729611166462,2.3837,2625.3,2625.0,2.98]
[1729611166653,0.3811,2625.1,2625.0,3.3611]
[1729611168871,0.9457459,2625.1,2625.0,3.3611]
[1729611169468,0.3811,2625.1,2625.0,3.3611]
[1729611169767,0.38111,2625.1,2625.0,0.3811]
[1729611169969,0.94564752,2625.1,2625.0,0.3811]
[1729611170961,0.38113,2625.0,2624.9,0.38112]
[1729611171169,0.38111,2625.1,2625.0,0.3811]
[1729611171569,0.94578775,2625.1,2625.0,0.3811]
[1729611171772,0.38111,2625.1,2625.0,0.3811]
[1729611172163,2.3837,2625.3,2624.8,2.98]
[1729611172364,2.3837,2625.3,2625.1,0.38109]
[1729611172365,0.94568986,2625.2,2625.1,0.38109]
[1729611172563,0.3811,2625.2,2625.1,0.38109]
[1729611173975,2.76479,2625.3,2625.2,0.38109]
[1729611174168,3.32914439,2625.3,2625.2,0.38109]
[1729611174379,2.94805439,2625.3,2625.2,1.75109]
[1729611174871,2.3837,2625.3,2625.2,1.75109]
[1729611175071,2.94803927,2625.3,2625.2,1.75109]
[1729611175376,3.32910469,2625.3,2625.2,1.75109]
[1729611175874,2.94802469,2625.3,2625.2,1.75109]
[1729611176372,2.3837,2625.3,2625.2,1.75109]
[1729611178071,0.38103,2625.6,2625.2,5.55989]
[1729611178271,7.69551,2625.8,2625.7,0.38102]
[1729611178467,8.25989902,2625.8,2625.7,1.75102]
[1729611178768,8.25988902,2625.8,2625.7,1.75102]
[1729611178965,7.87888902,2625.8,2625.7,1.75102]
[1729611179169,2.3711,2625.8,2625.7,1.75102]
[1729611180269,0.57410389,2626.0,2625.7,1.37]
[1729611180470,0.19311389,2626.0,2625.9,1.37]
[1729611180670,1.10779583,2626.0,2625.9,1.37]
[1729611182275,0.72682583,2626.0,2625.8,0.381]
[1729611182469,4.16017,2626.2,2625.8,0.381]
[1729611182470,3.2078,2626.2,2625.8,2.97]
[1729611182671,0.38098,2626.0,2625.9,0.38098]
[1729611182876,0.91473435,2626.0,2625.9,2.89308]
[1729611183178,0.53375435,2626.0,2625.9,2.89308]
[1729611183478,5.5287,2626.2,2626.1,0.38096]
[1729611183678,5.5287,2626.2,2626.1,3.35096]
[1729611183879,2.3209,2626.2,2626.1,2.97]
[1729611184177,2.3209,2626.2,2625.9,5.4821]
[1729611184376,0.38093,2626.4,2626.2,0.38094]
[1729611184574,0.38094,2626.3,2626.1,2.97]
[1729611184773,0.38094,2626.3,2626.2,0.38094]
[1729611185876,2.79373,2626.4,2626.3,0.38093]
[1729611186071,2.79373,2626.4,2626.2,0.38093]
[1729611186278,2.79373,2626.4,2626.3,0.38093]
[1729611186683,2.4128,2626.4,2626.3,0.38093]
[1729611186884,0.38089,2626.6,2626.5,0.38089]
[1729611187081,0.38088,2626.7,2626.6,0.38089]
[1729611187282,2.4128,2626.9,2626.7,0.38087]
[1729611187587,0.38086,2626.8,2626.7,0.38087]
[1729611187788,0.5339085,2626.8,2626.7,3.35087]
[1729611188082,0.9147685,2626.8,2626.7,0.38087]
[1729611188282,0.38086,2626.8,2626.7,0.38087]
[1729611188482,2.4128,2626.9,2626.6,2.69398]
[1729611188483,0.38087,2626.7,2626.6,2.69398]
[1729611188688,0.38087,2626.7,2626.6,2.3131]
[1729611188888,2.4128,2626.9,2626.6,6.1203]
[1729611189077,0.53356364,2626.8,2626.6,2.3131]
[1729611189281,2.4128,2626.9,2626.6,2.3131]
[1729611189586,0.38086,2626.8,2626.7,0.38086]
[1729611190783,3.2078,2627.6,2626.7,14.07097]
[1729611191090,0.38072,2627.8,2627.7,0.38072]
[1729611191291,2.85901,2627.9,2627.7,0.38072]
[1729611191487,2.4783,2627.9,2627.6,4.917]
[1729611191689,0.3807,2627.9,2627.7,0.38072]
[1729611191884,3.39460392,2628.0,2627.9,0.3807]
[1729611191885,3.2078,2628.0,2627.9,0.3807]
[1729611192085,3.2078,2628.0,2627.8,2.97]
[1729611192086,0.3807,2627.9,2627.8,2.97]
[1729611192284,3.2078,2628.0,2627.8,3.35071]
[1729611192285,3.58849,2628.0,2627.8,3.35071]
[1729611192892,3.58849,2628.0,2627.9,0.3807]
[1729611193187,3.2078,2628.0,2627.8,2.97]
[1729611193381,0.3807,2627.9,2627.8,2.97]
[1729611193577,0.3807,2627.9,2627.8,3.35071]
[1729611193781,0.3807,2627.9,2627.8,2.97]
[1729611194391,3.2078,2628.0,2627.7,3.80560946]
[1729611194604,0.38071,2627.8,2627.7,3.80560946]
[1729611196895,4.18631,2627.8,2627.7,3.80560946]
[1729611197084,0.3808,2627.2,2627.1,4.8668]
[1729611197287,0.38082,2627.1,2626.9,7.8812]
[1729611197588,0.95192,2627.5,2626.9,7.8812]
[1729611197589,0.38083,2627.0,2626.9,5.4387]
[1729611197782,0.38086,2626.8,2626.7,6.1778]
[1729611197986,0.38084,2627.0,2626.7,6.1778]
[1729611198183,6.60066,2627.4,2627.0,0.38083]
[1729611198184,0.38082,2627.1,2627.0,0.38083]
[1729611198486,0.38082,2627.1,2626.9,2.97]
[1729611198487,0.38082,2627.1,2626.9,3.35083]
[1729611198694,2.4409,2627.4,2626.9,2.97]
[1729611198892,0.3808,2627.3,2627.2,2.97]
[1729611199092,0.38078,2627.4,2627.2,3.35079]
[1729611199288,0.38078,2627.4,2627.3,2.4687]
[1729611199683,0.38075,2627.6,2627.4,0.38076]
[1729611199885,0.38075,2627.6,2627.4,2.97]
[1729611200087,2.4409,2627.8,2627.4,2.97]
[1729611200291,2.4409,2627.8,2627.6,2.97]
[1729611200495,0.38071,2627.8,2627.7,0.38072]
[1729611200793,3.2078,2628.0,2627.6,2.97]
[1729611200981,0.38071,2627.9,2627.8,0.38071]
[1729611201187,3.58849,2628.0,2627.8,0.38071]
[1729611201387,3.58849,2628.0,2627.6,2.97]
[1729611201388,3.58849,2628.0,2627.9,2.8204]
[1729611201583,0.38069,2628.0,2627.9,2.4397]
[1729611204884,3.8056,2628.0,2627.4,3.2078]
[1729611205084,0.95177,2627.9,2627.2,3.80633373]
[1729611205294,0.38079,2627.3,2627.2,3.80633373]
[1729611208285,4.18719,2627.3,2627.2,3.80633373]
[1729611208490,0.38079,2627.3,2627.2,3.80633373]
[1729611208690,0.72337481,2627.3,2627.2,3.80633373]
[1729611209089,4.52977481,2627.3,2627.2,0.15426941]
[1729611213101,0.72337481,2627.3,2627.2,0.15426941]
[1729611213301,4.52977481,2627.3,2627.2,0.15426941]
[1729611215502,0.95201,2627.2,2626.5,0.38089]
[1729611215695,0.38089,2626.6,2626.5,2.91149]
[1729611215901,0.38089,2626.6,2626.5,2.5306]
[1729611216096,0.38093,2626.3,2626.2,3.2078]
[1729611216299,0.95226,2626.5,2626.0,0.38097]
[1729611216300,0.38096,2626.2,2626.0,0.38097]
[1729611216506,0.38096,2626.1,2625.8,8.1784]
[1729611216706,0.95235,2626.3,2625.8,8.1784]
[1729611217005,0.38097,2626.1,2625.9,0.38097]
[1729611217213,0.38098,2626.0,2625.9,0.38099]
[1729611217407,2.80650036,2626.5,2626.0,0.38097]
[1729611217617,0.38096,2626.2,2626.0,0.38097]
[1729611217914,0.38096,2626.1,2625.9,0.38098]
[1729611218116,0.38096,2626.1,2626.0,0.38097]
[1729611218317,2.4692,2626.5,2625.9,2.97]
[1729611218511,0.38094,2626.3,2626.2,0.38094]
[1729611219520,0.38095,2626.2,2626.1,0.38095]
[1729611221018,2.4692,2626.5,2625.8,8.1784]
[1729611221219,1.48462776,2626.4,2625.9,0.38098]
[1729611221419,0.95234,2626.3,2625.9,0.38098]
[1729611221620,6.3774,2626.4,2625.8,8.1784]
[1729611221621,0.38099,2625.9,2625.8,8.1784]
[1729611221926,5.4251,2626.4,2625.8,8.1784]
[1729611221927,0.38098,2626.0,2625.9,0.38098]
[1729611222223,3.42146,2626.5,2625.8,8.1784]
[1729611222422,0.913427,2626.4,2626.3,0.38093]
[1729611222622,3.2078,2626.7,2626.3,2.97]
[1729611222817,3.2078,2626.7,2626.4,4.9648]
[1729611223024,0.38089,2626.6,2626.5,0.38089]
[1729611223526,3.2078,2626.7,2626.4,4.9648]
[1729611223527,3.58868,2626.7,2626.6,0.38089]
[1729611223729,0.38089,2626.6,2626.5,2.92429]
[1729611224227,0.38089,2626.6,2626.5,6.73149]
[1729611224428,3.2078,2626.7,2626.5,6.3506]
[1729611224625,3.58868,2626.7,2626.6,0.38089]
[1729611225720,3.58868,2626.7,2626.5,2.5434]
[1729611225721,3.2078,2626.7,2626.5,2.5434]
[1729611225916,3.58868,2626.7,2626.6,0.38089]
[1729611226627,3.2078,2626.7,2626.4,4.9648]
[1729611226820,0.3809,2626.5,2626.4,5.3457]
[1729611227022,0.3809,2626.6,2626.5,0.3809]
[1729611227526,0.3809,2626.6,2626.5,4.1881]
[1729611228033,0.38089,2626.7,2626.6,0.38088]
[1729611230322,0.38086,2626.9,2626.8,0.38086]
[1729611230631,0.38087,2626.8,2626.7,0.38087]
[1729611230829,0.38086,2626.8,2626.7,0.38087]
[1729611231125,0.38083,2627.0,2626.9,0.38084]
[1729611231328,3.2078,2627.1,2627.0,0.38083]
[1729611231525,3.2078,2627.1,2626.8,2.4101]
[1729611231725,3.2078,2627.1,2627.0,0.38083]
[1729611232133,3.2078,2627.4,2627.0,6.2002]
[1729611232324,3.58858,2627.4,2627.3,0.38079]
[1729611232517,4.12234239,2627.4,2627.3,0.38079]
[1729611232722,3.74156239,2627.4,2627.0,3.34587]
[1729611232923,3.2078,2627.4,2627.0,3.34587]
[1729611233124,0.38081,2627.2,2627.1,0.38081]
[1729611233426,0.38084,2626.9,2626.8,3.2078]
[1729611233724,2.97,2627.2,2626.9,0.38084]
[1729611233725,0.38084,2627.0,2626.9,0.38084]
[1729611234127,0.38083,2627.0,2626.9,2.3421]
[1729611234334,0.53383492,2627.0,2626.5,3.2078]
[1729611234528,0.95189,2627.6,2626.9,6.1778]
[1729611234828,10.1082384,2628.2,2627.5,0.07]
[1729611235129,2.86893,2627.8,2627.5,0.38075]
[1729611235324,2.4882,2627.8,2627.5,0.38075]
[1729611235525,0.38073,2627.7,2627.5,0.38075]
[1729611235727,0.38073,2627.7,2627.4,2.3421]
[1729611235728,2.4882,2627.8,2627.6,0.38074]
[1729611235927,2.86893,2627.8,2627.5,0.38075]
[1729611236127,2.4882,2627.8,2627.4,2.3421]
[1729611236325,2.4882,2627.8,2627.6,0.38074]
[1729611236823,0.38074,2627.7,2627.4,2.3421]
[1729611237020,0.38075,2627.6,2627.1,3.2078]
[1729611237219,0.38075,2627.6,2627.4,0.38077]
[1729611237429,0.38075,2627.6,2627.3,0.38078]
[1729611237721,5.5217,2627.7,2627.2,2.79679]
[1729611237926,0.38077,2627.5,2627.3,0.38078]
[1729611238126,2.5618,2627.6,2627.3,0.38078]
[1729611238332,2.94255,2627.6,2627.2,2.416]
[1729611238629,0.38076,2627.5,2627.3,0.38077]
[1729611238833,2.5618,2627.6,2627.2,2.416]
[1729611239026,2.94255,2627.6,2627.4,0.38076]
[1729611239531,0.38076,2627.5,2627.3,0.38077]
[1729611239831,0.38076,2627.5,2627.4,0.38077]
[1729611240023,2.94255,2627.6,2627.4,0.38077]
[1729611240328,0.38076,2627.5,2627.4,0.38077]
[1729611240529,2.94254,2627.6,2627.5,0.38076]
[1729611240829,2.94254,2627.6,2627.4,0.38076]
[1729611241130,2.94254,2627.6,2627.5,0.38076]
[1729611241521,2.5618,2627.6,2627.5,0.38076]
[1729611241927,2.94255,2627.6,2627.4,0.38076]
[1729611242234,2.5618,2627.6,2627.4,0.38076]
[1729611242435,0.38079,2627.3,2626.8,6.1778]
[1729611242635,3.8056,2627.5,2627.0,0.38082]
[1729611242636,2.88271,2627.2,2627.0,0.38082]
[1729611242932,2.4198,2627.1,2627.0,0.38082]
[1729611243134,2.4198,2627.1,2626.8,3.2078]
[1729611243329,0.38084,2626.9,2626.8,3.2078]
[1729611243535,1.32979601,2627.1,2626.8,3.2078]
[1729611243830,0.38084,2626.9,2626.8,3.2078]
[1729611244136,0.38087,2626.7,2626.6,3.80720322]
[1729611244636,1.08323305,2626.7,2626.6,3.80720322]
[1729611244832,0.57326052,2626.7,2626.6,3.80720322]
[1729611245131,1.08323305,2626.7,2626.6,3.80720322]
[1729611246133,8.09823305,2626.7,2626.6,3.44686246]
[1729611246439,10.41823305,2626.7,2626.6,3.44686246]
[1729611246640,14.34867145,2626.7,2626.6,3.44686246]
[1729611247227,14.68308722,2626.7,2626.6,3.44686246]
[1729611248234,10.75264882,2626.7,2626.6,2.91302271]
[1729611249237,14.71161375,2626.7,2626.6,2.91302271]
[1729611249436,10.75264882,2626.7,2626.6,2.91302271]
[1729611250036,15.19624897,2626.7,2626.6,2.91302271]
[1729611250336,10.75264882,2626.7,2626.6,2.91302271]
[1729611250542,15.19624897,2626.7,2626.6,2.91302271]
[1729611251239,10.75264882,2626.7,2626.6,2.91302271]
[1729611251438,14.71430451,2626.7,2626.6,2.91302271]
[1729611251638,13.99901874,2626.7,2626.6,2.91302271]
[1729611251843,0.50997253,2626.7,2626.6,3.29391271]
[1729611252238,0.50997253,2626.7,2626.6,8.25731271]
[1729611253654,0.50997253,2626.7,2626.6,5.72231271]
[1729611253655,0.89084253,2626.7,2626.6,5.72231271]
[1729611254148,0.50997253,2626.7,2626.6,5.72231271]
[1729611255135,0.89084253,2626.7,2626.6,5.72231271]
[1729611255339,0.50997253,2626.7,2626.6,5.72231271]
[1729611257243,0.50997253,2626.7,2626.6,9.52951271]